Cogmind - Beta 15 @@@ ROGUE MODE // 2025.06.06 @ 17:15:45 Player: Nator Result: Destroyed by G-34 Mercenary with Small Laser Performance ------------- Evolutions (0) 0 Regions Visited (2) 400 Robots Destroyed (11) 55 Value Destroyed (300) 300 Prototype IDs (0) 0 Alien Tech Used (0) 0 Bonus (0) 0 TOTAL SCORE: 755 Bonus ------- None Cogmind --------- Core Integrity 0/250 Matter 290/300 Energy 65/100 System Corruption 0% Temperature Cool (36) Movement Core (100) Ox1 Location -10/Mines Parts ------- > --- POWER (1) -------- (None) > --- PROPULSION (2) --- (None) > --- UTILITY (2) ------ Small Storage Unit Signal Interpreter > --- WEAPON (2) ------- Datajack > --- INVENTORY (8) ---- Small Matter Pod (50) Weapon Shielding Grenade Launcher Rocket Launcher Peak State ------------ > --- POWER ------------ Ion Engine > --- PROPULSION ------- Aluminum Leg Aluminum Leg > --- UTILITY ---------- Signal Interpreter Signal Interpreter > --- WEAPON ----------- Medium Laser Particle Gun > --- INVENTORY -------- Small Storage Unit Small Matter Pod Medium Laser Grenade Launcher Mining Laser [Rating: 8] Favorites ----------- Power Light Ion Engine Engine Light Ion Engine Propulsion Aluminum Leg Leg Aluminum Leg Wheel Wheel Flight Unit Flight Unit Utility Signal Interpreter Storage Small Storage Unit Processor Signal Interpreter Weapon Medium Laser Energy Gun Medium Laser Ballistic Gun Assault Rifle Launcher Grenade Launcher Special Weapon Mining Laser Special Melee Weapon Datajack Build | -11 -10 -10 ------- Run | Yrd Mat Min Slots Evolved . | . . . Power . | . . . Propulsion . | . . . Utility . | . . . Weapon . | . . . Parts Attached 18 | 5 12 1 Power 3 | 1 2 . Engine 3 | 1 2 . Core . | . . . Reactor . | . . . Propulsion 5 | 2 3 . Treads . | . . . Leg 3 | 2 1 . Wheel 1 | . 1 . Hover . | . . . Flight 1 | . 1 . Utility 3 | . 3 . Device . | . . . Storage 1 | . 1 . Processor 2 | . 2 . Hackware . | . . . Protection . | . . . Artifact . | . . . Weapon 7 | 2 4 1 Energy Gun 3 | 1 2 . Energy Cannon . | . . . Ballistic Gun 1 | 1 . . Ballistic Cannon . | . . . Launcher 1 | . 1 . Special Weapon 1 | . . 1 Impact Weapon . | . . . Slashing Weapon . | . . . Piercing Weapon . | . . . Special Melee Weapon 1 | . 1 . Unidentified Prototypes . | . . . Parts Lost 6 | . . 6 Power 1 | . . 1 Propulsion 2 | . . 2 Utility . | . . . Weapon 3 | . . 3 Highest Loss Streak 4 | . . 4 To Critical Strikes . | . . . Average Backups 3 | . 3 4 Power . | . . . Propulsion . | . . . Utility 1 | . 1 2 Weapon 1 | . 1 2 Tool/Special . | . . . Unused Backups 3 | . . 3 Power . | . . . Propulsion . | . . . Utility 2 | . . 2 Weapon 1 | . . 1 Tool/Special . | . . . Average Slot Usage (%) 82 | . 89 61 Engine 10 | . 14 . Leg 17 | . 23 . Wheel 2 | . 2 1 Storage 4 | . 1 14 Processor 17 | . 19 14 Energy Gun 17 | . 21 6 Ballistic Gun 1 | . 1 . Launcher 3 | . 4 . Special Weapon 1 | . . 7 Special Melee Weapon 4 | . . 14 Peak Build Rating 8 | 5 8 8 Average Rating 5 | 3 6 4 On Entrance 4 | . 5 8 Naked Turns . | . . . Heaviest Build 12 | 7 12 12 Greatest Support 20 | 20 20 10 Greatest Overweight (x) 2 | . 1 2 Average Overweight (x) . | . . 1 Largest Inventory Capacity 8 | 5 8 8 Average Capacity 5 | 5 5 8 Most Carried 6 | 2 6 5 Average Carried 3 | . 3 4 Final Capacity 8 | 5 8 8 Final Carried 5 | . 5 4 Class Distribution -------------------- 100% | Mutant Dominant Class ---------------- Mutant | -10/Materials Mutant | -10/Mines Resources | -11 -10 -10 ----------- Run | Yrd Mat Min Matter Collected 423 | 253 125 45 Remotely . | . . . Salvage Created 384 | 39 270 75 Parts 13 | 3 8 2 Haulers Intercepted . | . . . Recyclers Shooed 1 | . 1 . Parts Field Recycled . | . . . Retrieved Matter . | . . . Parts Self-Destructed . | . . . Prevented . | . . . Kills | -11 -10 -10 ------- Run | Yrd Mat Min Combat Hostiles Destroyed 10 | 1 7 2 Guns 9 | 1 6 2 Classes Destroyed 3 | 1 2 . Recycler 1 | . 1 . Swarmer 3 | . 3 . Grunt 7 | 1 4 2 Best Kill Streak 2 | 1 2 1 Combat Bots Only 2 | 1 2 1 Max Kills in Single Turn 1 | 1 1 1 Gunslinging . | . . . Exploded . | . . . Melee . | . . . Uniques/NPCs Destroyed . | . . . Combat | -11 -10 -10 -------- Run | Yrd Mat Min Hostile Shots Fired 90 | 1 55 34 Missed 18 | . 15 3 Hits 72 | 1 40 31 Projectile 72 | 1 40 31 Critical Strikes 2 | . 2 . Damage Taken 849 | 12 425 412 Core 254 | . 84 170 Absorbed by Shields . | . . . Core Remaining (%) 100 | 100 . . Volleys Fired 68 | 1 46 21 Largest 2 | 2 2 1 Hottest 115 | 70 115 100 Shots Fired 97 | 2 74 21 Gun 96 | 2 74 20 Cannon . | . . . Launcher . | . . . Special 1 | . . 1 Kinetic 1 | 1 . . Thermal 96 | 1 74 21 Explosive . | . . . Electromagnetic . | . . . Robot Hit Streak 7 | 2 6 7 Robot Miss Streak 5 | . 5 2 Penetration Max . | . . . Secondary Targets . | . . . Shots Hit Robots 62 | 2 41 19 Core Hits 22 | 2 14 6 Critical Kills . | . . . Critical Parts Destroyed . | . . . Critical Strikes 4 | . 3 1 Burn 4 | . 3 1 Melee Attacks 3 | . . 3 Impact . | . . . Slashing . | . . . Piercing . | . . . Sneak Attacks 1 | . . 1 Combat Hostiles . | . . . Follow-up Attacks . | . . . Damage Inflicted 813 | 26 558 229 Guns 789 | 26 558 205 Cannons . | . . . Explosions . | . . . Melee . | . . . Ramming . | . . . Kinetic 13 | 13 . . Thermal 800 | 13 558 229 Explosive . | . . . Electromagnetic . | . . . Impact . | . . . Slashing . | . . . Piercing . | . . . Highest Corruption . | . . . Average Corruption . | . . . Corruption Purged . | . . . Corruption Blocked . | . . . Overload Shots . | . . . Overflow Damage . | . . . Projectiles . | . . . Explosions . | . . . Melee . | . . . Knockbacks . | . . . Impact . | . . . Kinetic . | . . . Secondary . | . . . Self-Inflicted Damage . | . . . Shots . | . . . Rammed . | . . . Targets Rammed . | . . . Kicked . | . . . Crushed . | . . . Highest Temperature 390 | 15 390 276 Average Temperature 130 | 12 127 151 Received Heat Transfer 462 | 6 210 246 Effects 2 | . 1 1 Shutdowns 1 | . 1 . Interference 1 | . . 1 Siege Activations . | . . . Martial Activations . | . . . Shielding Activations . | . . . Robots Disrupted . | . . . Combat Hostiles . | . . . Robots Corrupted . | . . . Combat Hostiles . | . . . Parts Fried . | . . . Impact Corruptions . | . . . Robots Melted 1 | . 1 . Combat Hostiles 1 | . 1 . Parts Melted 8 | . 5 3 Heat Transferred 2492 | 37 1776 679 Parts Sabotaged . | . . . Parts Stolen . | . . . Parts Stripped . | . . . Power Chain Reactions . | . . . Alert | -11 -10 -10 ------- Run | Yrd Mat Min Maximum Alert Level . | . . . Low Security (%) 100 | 100 100 100 Level 1 . | . . . Level 2 . | . . . Level 3 . | . . . Level 4 . | . . . Level 5 . | . . . High Security . | . . . Max Security . | . . . Peak Influence 80 | 20 80 38 Initial 28 | . 6 28 Average 18 | 1 24 8 Influence Increases 310 | 20 240 50 Destroy 0b10 Robot/C 200 | 20 140 40 Destroy 0b10 Robot/NC 5 | . 5 . Destroy Leader 40 | . 30 10 Successful Hack 18 | . 18 . Destroy Structure 2 | . 2 . Lose Combat Pursuer 45 | . 45 . Influence Decreases 310 | 10 176 124 Entered New Map 50 | . 4 46 Time Decay 222 | 10 172 40 Lost Part 38 | . . 38 Squads Dispatched 2 | . 2 . Investigation 1 | . 1 . Extermination . | . . . Reinforcement 1 | . 1 . Assault . | . . . Garrison . | . . . Intercept . | . . . Searches Triggered . | . . . Construction Impeded . | . . . Haulers Reinforced . | . . . Active Scanning Responses . | . . . Cargo Convoy Interrupts . | . . . Stealth | -11 -10 -10 --------- Run | Yrd Mat Min Distress Signals 3 | . 3 . Communications Jammed . | . . . Distress Signals . | . . . Times Spotted 20 | 1 15 4 Peak Tracking Total 3 | 1 3 2 Tactical Retreats 2 | . 2 . Traps | -11 -10 -10 ------- Run | Yrd Mat Min Traps Triggered . | . . . Indirectly . | . . . Trap Hack Attempts . | . . . Triggered . | . . . Disarmed . | . . . Reprogrammed . | . . . Reused . | . . . Traps Extracted . | . . . Installed . | . . . Triggered . | . . . Machines | -11 -10 -10 ---------- Run | Yrd Mat Min Machines Disabled . | . . . Max in Single Turn . | . . . Machines Repaired . | . . . Machines Dismantled . | . . . Machines Sabotaged . | . . . Overloaded Fab Kills . | . . . Hacking | -11 -10 -10 --------- Run | Yrd Mat Min Machines Accessed 4 | . 4 . Terminals 3 | . 3 . Fabricators . | . . . Repair Stations . | . . . Recycling Units 1 | . 1 . Scanalyzers . | . . . Garrison Access . | . . . Total Hacks 12 | . 12 . Successful 6 | . 6 . Failed 6 | . 6 . Catastrophic . | . . . Database Lockouts . | . . . Manual . | . . . Terminals 8 | . 8 . Fabricators . | . . . Repair Stations . | . . . Recycling Units 4 | . 4 . Scanalyzers . | . . . Garrison Access . | . . . Terminal Hacks 4 | . 4 . Record 1 | . 1 . Alert Level 1 | . 1 . Recall Investigation 1 | . 1 . Zone Layout 1 | . 1 . Fabricator Hacks . | . . . Repair Station Hacks . | . . . Recycling Unit Hacks 2 | . 2 . Process 1 | . 1 . Report Inventory 1 | . 1 . Scanalyzer . | . . . Garrison Access Hacks . | . . . Unauthorized Hacks . | . . . Terminals . | . . . Fabricators . | . . . Repair Stations . | . . . Recycling Units . | . . . Scanalyzers . | . . . Garrison Access . | . . . Data Cores Recovered . | . . . Used . | . . . Hacking Detections 3 | . 3 . Full Trace Events 1 | . 1 . Feedback Events . | . . . Feedback Blocked . | . . . Robot Schematics Acquired . | . . . Robots Built . | . . . Authchips . | . . . Time . | . . . Total Robot Build Rating . | . . . Part Schematics Acquired . | . . . Parts Built . | . . . Authchips . | . . . Time . | . . . Total Part Build Rating . | . . . Parts Repaired . | . . . Time . | . . . Parts Recycled . | . . . Recycled Matter . | . . . Retrieved Matter . | . . . Retrieved Components . | . . . Parts Scanalyzed . | . . . Part Schematics Acquired . | . . . Parts Damaged . | . . . Bothacking | -11 -10 -10 ------------ Run | Yrd Mat Min Used RIF Installer . | . . . Robots Hacked 2 | . . 2 Non-combat 1 | . . 1 Combat 1 | . . 1 Robot Hacks Applied 2 | . . 2 parse_system 2 | . . 2 Relay Couplers Released . | . . . Fabnet Peak Effective % . | . . . Robots Rewired . | . . . Allies Hacked . | . . . Hacks Repelled . | . . . Allies | -11 -10 -10 -------- Run | Yrd Mat Min Total Allies . | . . . Largest Group . | . . . Highest-Rated Group . | . . . Highest-Rated Ally . | . . . Total Orders . | . . . Ally Attacks . | . . . Total Damage . | . . . Kills . | . . . Allies Corrupted . | . . . Allies Melted . | . . . Intel | -11 -10 -10 ------- Run | Yrd Mat Min Active Infowar (turns) . | . . . Robot Analysis Total . | . . . Derelict Logs Recovered . | . . . Drone Launches . | . . . Drone Recoveries . | . . . Exploration | -11 -10 -10 ------------- Run | Yrd Mat Min Turns Passed 682 | 65 455 162 Spaces Moved 394 | 57 264 73 Core 94 | 22 . 72 Treads . | . . . Legs 243 | 35 208 . Wheels 57 | . 56 1 Hover . | . . . Flight . | . . . Fastest Speed 50 | 50 80 95 Average Speed 116 | 92 112 149 Slowest Speed 150 | 120 120 150 Overloaded Moves . | . . . Propulsion Burnouts . | . . . Robots Hopped . | . . . Potential Cave-ins . | . . . Cave-ins Triggered . | . . . Exploration Rate (%) 24 | 6 42 24 Regions Visited 2 Branch Regions 1 Pre-discovered Areas . | . . . Known Exits Taken 1 | . 1 . Unknown Exits Taken 1 | 1 . . Scrap Searched . | . . . Spaces Dug . | . . . Terrain Destroyed . | . . . Melee . | . . . Projectile . | . . . AOE . | . . . Terrain Rammed . | . . . Walls Destroyed . | . . . Machines Disabled . | . . . Actions | -11 -10 -10 --------- Run | Yrd Mat Min Total 514 | 67 346 101 Wait 4 | . 4 . Move 392 | 56 263 73 Hop . | . . . Pick Up 19 | 5 13 1 Fast Attach 1 | . 1 . Attach 10 | 5 3 2 Detach . | . . . Swap 10 | . 9 1 Drop 7 | . 7 . Fire 68 | 1 46 21 Melee 3 | . . 3 Ram . | . . . Kick . | . . . Crush . | . . . Escape Stasis . | . . . Rewire . | . . . Trap . | . . . Miscellaneous . | . . . Route ------- -11/Scrapyard -10/Materials -10/Mines (discovered 1 exit: [*Sub]) History --------- Turn | Location | Event 2 | -11/Scrapyard | Met Revision 17 51 | -11/Scrapyard | Discovered new exit (range 8) 66 | -11/Scrapyard | Entered Materials 316 | -10/Materials | Build established: Mutant 467 | -10/Materials | Discovered new exit (range 16) 520 | -10/Materials | Identified exit to Mines 521 | -10/Materials | Entered Mines 532 | -10/Mines | Core integrity fell below 50% 578 | -10/Mines | Lost 4 parts (1p2n1w) 587 | -10/Mines | Received a Rocket Launcher from a helpful Derelict 659 | -10/Mines | Discovered new exit (range 7) 672 | -10/Mines | Core integrity fell below 20% 683 | -10/Mines | Destroyed by G-34 Mercenary with Small Laser Last Messages --------------- A derelict emerges from the shadows. I6-TFO(g): "Some of my friends down here think you need a mining laser when you travel the depths." K-01 Serf collects debris. I6-TFO(g): "They are crazy." I6-TFO(g): "Everyone knows a good old rocket launcher goes a long way." I6-TFO(g): "Need to get rid of a swarm? Done. Need a big hole in the wall? Done." I6-TFO(g): "Need a small hole in the wall? Leave that to the mining laser wimps, I say!" I6-TFO(g): "Would you like a rocket launcher? I know I would if I were you, so I'm going to lend you mine." I6-TFO(g) slips back into the shadows. Acquired Rocket Launcher. K-01 Serf cleans the Plasma Injector. EXIT=FOUND Mining Laser destroyed. Jacked G-34 Mercenary... >>parse_system Reading system data... Med. Laser destroyed. U-05 Engineer lays Concrete. Map ----- +----------------------------------------------------+ | | | | | | | | | | | | | | | | | | | | | | | ????????????????????????????????????????????????? | | ????????????????????????????????????????????????? | | ????????????????????????????????????????????????? | | ????????????????????????????????????????????????? | | ????????????????????????????????????????????????? | | ????????????????????????????????????????????????? | | ??????????????????????????######????????????????? | | ??????????????????????????# ##???????????????? | | ??????????????????????????#